{"text_format":"1","workbook":"xlsx","n_sheets":5,"sheets":["Sheet4","OMR","Bed Bug Inspection","Heat Evaluation","Sheet1"],"not_rendered":{"charts":0,"images":1,"macros":0,"external_links":0,"defined_names":8,"comments":0,"pivot_tables":0},"unopened":[],"bounds":{"document_bytes":16777216,"sheet_cells":100000,"rows_first":2000,"rows_last":500,"rows_between":2000,"halvings":0,"cell_chars":16384,"cell_head_chars":4096},"cells_cut":0,"cells_raw":0,"read":"whole","date_system":"1900"}

{"sheet":"Sheet4","index":0,"n_rows":510,"n_cols":40,"rows_kept":510,"cut":false,"hidden":false,"merged":[[11,1,11,7],[11,8,11,9],[11,11,11,17],[11,18,11,19],[11,28,11,29],[31,1,31,14],[32,1,34,14],[27,15,30,29],[32,15,34,29],[12,1,12,10],[12,11,12,20],[12,21,12,29],[19,8,19,9],[19,11,19,17],[19,18,19,19],[19,28,19,29],[13,1,17,10],[13,11,17,20],[13,21,17,29],[18,1,18,10],[18,11,18,20],[18,21,18,29],[19,1,19,7],[0,1,0,13],[0,14,0,29],[1,21,1,22],[2,20,2,22],[2,23,2,29],[3,20,3,22],[3,23,3,29],[7,1,8,29],[10,1,10,10],[10,11,10,20],[10,21,10,29],[6,28,6,29],[6,1,6,4],[6,5,6,18],[1,1,1,4],[2,1,2,4],[4,1,4,4],[3,5,3,19],[4,5,4,19],[2,5,2,19],[1,5,1,19],[1,23,1,29],[6,19,6,27],[3,1,3,4],[145,1,151,7],[145,8,151,14],[145,15,151,21],[145,22,151,28],[152,1,158,7],[152,8,158,14],[152,15,158,21],[152,22,158,28],[27,1,30,14],[115,1,119,10],[115,11,119,20],[115,21,119,29],[120,1,120,10],[120,11,120,20],[120,21,120,29],[114,1,114,10],[114,11,114,20],[114,21,114,29],[61,21,61,29],[62,1,62,7],[62,8,62,9],[62,11,62,17],[62,18,62,19],[62,28,62,29],[133,15,133,29],[134,1,136,14],[134,15,136,29],[128,1,128,14],[128,15,128,29],[129,1,132,14],[129,15,132,29],[138,1,144,7],[138,8,144,14],[138,15,144,21],[138,22,144,28],[179,1,179,14],[179,15,179,29],[180,1,183,14],[180,15,183,29],[184,1,184,14],[184,15,184,29],[185,1,187,14],[185,15,187,29],[189,1,195,7],[189,8,195,14],[189,15,195,21],[189,22,195,28],[173,1,173,10],[173,11,173,20],[173,21,173,29],[174,1,178,10],[174,11,178,20],[174,21,178,29],[20,21,20,29],[21,1,25,10],[21,11,25,20],[21,21,25,29],[20,1,20,10],[20,11,20,20],[31,15,31,29],[26,1,26,14],[26,15,26,29],[159,1,159,4],[159,5,159,18],[159,19,159,27],[58,1,59,29],[61,1,61,10],[61,11,61,20],[159,28,159,29],[160,1,161,29],[133,1,133,14],[82,1,82,14],[82,15,82,29],[83,1,85,14],[83,15,85,29],[71,1,71,10],[71,11,71,20],[71,21,71,29],[72,1,76,10],[72,11,76,20],[72,21,76,29],[77,1,77,14],[77,15,77,29],[57,1,57,4],[57,5,57,18],[57,19,57,27],[57,28,57,29],[64,1,68,10],[64,11,68,20],[64,21,68,29],[78,1,81,14],[78,15,81,29],[69,21,69,29],[70,1,70,7],[70,8,70,9],[70,11,70,17],[70,18,70,19],[70,28,70,29],[63,1,63,10],[63,11,63,20],[63,21,63,29],[69,1,69,10],[69,11,69,20],[108,1,108,4],[108,5,108,18],[108,19,108,27],[108,28,108,29],[109,1,110,29],[112,1,112,10],[112,11,112,20],[112,21,112,29],[113,1,113,7],[113,8,113,9],[113,11,113,17],[113,18,113,19],[113,28,113,29],[121,1,121,7],[121,8,121,9],[121,11,121,17],[121,18,121,19],[121,28,121,29],[122,1,122,10],[122,11,122,20],[122,21,122,29],[123,1,127,10],[123,11,127,20],[123,21,127,29],[163,1,163,10],[163,11,163,20],[163,21,163,29],[164,1,164,7],[164,8,164,9],[164,11,164,17],[164,18,164,19],[164,28,164,29],[165,1,165,10],[165,11,165,20],[165,21,165,29],[166,1,170,10],[166,11,170,20],[166,21,170,29],[171,1,171,10],[171,11,171,20],[171,21,171,29],[172,1,172,7],[172,8,172,9],[172,11,172,17],[172,18,172,19],[172,28,172,29],[210,1,210,4],[210,5,210,18],[210,19,210,27],[210,28,210,29],[211,1,212,29],[214,1,214,10],[214,11,214,20],[214,21,214,29],[196,1,202,7],[196,8,202,14],[196,15,202,21],[196,22,202,28],[203,1,209,7],[203,8,209,14],[203,15,209,21],[203,22,209,28],[215,1,215,7],[215,8,215,9],[215,11,215,17],[215,18,215,19],[215,28,215,29],[216,1,216,10],[216,11,216,20],[216,21,216,29],[217,1,221,10],[217,11,221,20],[217,21,221,29],[222,1,222,10],[222,11,222,20],[222,21,222,29],[223,1,223,7],[223,8,223,9],[223,11,223,17],[223,18,223,19],[223,28,223,29],[224,1,224,10],[224,11,224,20],[224,21,224,29],[225,1,229,10],[225,11,229,20],[225,21,229,29],[230,1,230,14],[230,15,230,29],[231,1,234,14],[231,15,234,29],[235,1,235,14],[235,15,235,29],[236,1,238,14],[236,15,238,29],[261,1,261,4],[261,5,261,18],[261,19,261,27],[261,28,261,29],[240,1,246,7],[240,8,246,14],[240,15,246,21],[240,22,246,28],[247,1,253,7],[247,8,253,14],[247,15,253,21],[247,22,253,28],[254,1,260,7],[254,8,260,14],[254,15,260,21],[254,22,260,28],[262,1,263,29],[265,1,265,10],[265,11,265,20],[265,21,265,29],[266,1,266,7],[266,8,266,9],[266,11,266,17],[266,18,266,19],[266,28,266,29],[267,1,267,10],[267,11,267,20],[267,21,267,29],[268,1,272,10],[268,11,272,20],[268,21,272,29],[273,1,273,10],[273,11,273,20],[273,21,273,29],[274,1,274,7],[274,8,274,9],[274,11,274,17],[274,18,274,19],[274,28,274,29],[275,1,275,10],[275,11,275,20],[275,21,275,29],[276,1,280,10],[276,11,280,20],[276,21,280,29],[281,1,281,14],[281,15,281,29],[282,1,285,14],[282,15,285,29],[286,1,286,14],[286,15,286,29],[287,1,289,14],[287,15,289,29],[291,1,297,7],[291,8,297,14],[291,15,297,21],[291,22,297,28],[312,1,312,4],[312,5,312,18],[312,19,312,27],[312,28,312,29],[313,1,314,29],[316,1,316,10],[316,11,316,20],[316,21,316,29],[298,1,304,7],[298,8,304,14],[298,15,304,21],[298,22,304,28],[305,1,311,7],[305,8,311,14],[305,15,311,21],[305,22,311,28],[317,1,317,7],[317,8,317,9],[317,11,317,17],[317,18,317,19],[317,28,317,29],[318,1,318,10],[318,11,318,20],[318,21,318,29],[319,1,323,10],[319,11,323,20],[319,21,323,29],[324,1,324,10],[324,11,324,20],[324,21,324,29],[325,1,325,7],[325,8,325,9],[325,11,325,17],[325,18,325,19],[325,28,325,29],[326,1,326,10],[326,11,326,20],[326,21,326,29],[327,1,331,10],[327,11,331,20],[327,21,331,29],[332,1,332,14],[332,15,332,29],[333,1,336,14],[333,15,336,29],[337,1,337,14],[337,15,337,29],[338,1,340,14],[338,15,340,29],[363,1,363,4],[363,5,363,18],[363,19,363,27],[363,28,363,29],[342,1,348,7],[342,8,348,14],[342,15,348,21],[342,22,348,28],[349,1,355,7],[349,8,355,14],[349,15,355,21],[349,22,355,28],[356,1,362,7],[356,8,362,14],[356,15,362,21],[356,22,362,28],[364,1,365,29],[367,1,367,10],[367,11,367,20],[367,21,367,29],[368,1,368,7],[368,8,368,9],[368,11,368,17],[368,18,368,19],[368,28,368,29],[369,1,369,10],[369,11,369,20],[369,21,369,29],[370,1,374,10],[370,11,374,20],[370,21,374,29],[375,1,375,10],[375,11,375,20],[375,21,375,29],[376,1,376,7],[376,8,376,9],[376,11,376,17],[376,18,376,19],[376,28,376,29],[377,1,377,10],[377,11,377,20],[377,21,377,29],[378,1,382,10],[378,11,382,20],[378,21,382,29],[383,1,383,14],[383,15,383,29],[384,1,387,14],[384,15,387,29],[388,1,388,14],[388,15,388,29],[389,1,391,14],[389,15,391,29],[393,1,399,7],[393,8,399,14],[393,15,399,21],[393,22,399,28],[414,1,414,4],[414,5,414,18],[414,19,414,27],[414,28,414,29],[415,1,416,29],[418,1,418,10],[418,11,418,20],[418,21,418,29],[400,1,406,7],[400,8,406,14],[400,15,406,21],[400,22,406,28],[407,1,413,7],[407,8,413,14],[407,15,413,21],[407,22,413,28],[419,1,419,7],[419,8,419,9],[419,11,419,17],[419,18,419,19],[419,28,419,29],[420,1,420,10],[420,11,420,20],[420,21,420,29],[421,1,425,10],[421,11,425,20],[421,21,425,29],[426,1,426,10],[426,11,426,20],[426,21,426,29],[427,1,427,7],[427,8,427,9],[427,11,427,17],[427,18,427,19],[427,28,427,29],[428,1,428,10],[428,11,428,20],[428,21,428,29],[429,1,433,10],[429,11,433,20],[429,21,433,29],[434,1,434,14],[434,15,434,29],[435,1,438,14],[435,15,438,29],[439,1,439,14],[439,15,439,29],[470,28,470,29],[440,1,442,14],[440,15,442,29],[465,1,465,4],[465,5,465,18],[465,19,465,27],[465,28,465,29],[444,1,450,7],[444,8,450,14],[444,15,450,21],[444,22,450,28],[451,1,457,7],[451,8,457,14],[451,15,457,21],[451,22,457,28],[458,1,464,7],[458,8,464,14],[458,15,464,21],[458,22,464,28],[502,1,508,7],[502,8,508,14],[502,15,508,21],[502,22,508,28],[509,1,515,7],[509,8,515,14],[509,15,515,21],[509,22,515,28],[478,1,478,7],[478,8,478,9],[478,11,478,17],[478,18,478,19],[478,28,478,29],[479,1,479,10],[479,11,479,20],[479,21,479,29],[480,1,484,10],[480,11,484,20],[480,21,484,29],[485,1,485,14],[485,15,485,29],[486,1,489,14],[486,15,489,29],[490,1,490,14],[495,1,501,7],[495,8,501,14],[495,15,501,21],[495,22,501,28],[36,1,42,7],[43,1,49,7],[50,1,56,7],[36,22,42,28],[36,8,42,14],[43,8,49,14],[50,8,56,14],[43,22,49,28],[36,15,42,21],[43,15,49,21],[50,15,56,21],[50,22,56,28],[87,1,93,7],[94,1,100,7],[101,1,107,7],[87,22,93,28],[94,8,100,14],[471,1,471,10],[471,11,471,20],[471,21,471,29],[94,15,100,21],[94,22,100,28],[101,8,107,14],[101,15,107,21],[101,22,107,28],[87,8,93,14],[87,15,93,21],[490,15,490,29],[491,1,493,14],[491,15,493,29],[472,1,476,10],[472,11,476,20],[472,21,476,29],[477,1,477,10],[477,11,477,20],[477,21,477,29],[466,1,467,29],[469,1,469,10],[469,11,469,20],[469,21,469,29],[470,1,470,7],[470,8,470,9],[470,11,470,17],[470,18,470,19]]}
[null,"Corbett Exterminating",null,null,null,null,null,null,null,null,null,null,null,null,"Bed Bug Inspection for Apartments"]
[null,"Complex:",null,null,null,{"$f":"AJ4","v":"{Customer_Name}"},null,null,null,null,null,null,null,null,null,null,null,null,null,null,null,"Date:",null,"02/22/2016",null,null,null,null,null,null,null,null,null,null,null,"The Village Apts.",{"$f":"LEN(AJ2)","v":17.0},{"$f":"FIND(\"(\",AJ2)-1","v":{"$error":"#VALUE!"}},{"$f":"LEFT(AJ2,AL2)","v":{"$error":"#VALUE!"}},{"$f":"IF(ISNUMBER(SEARCH(\"*(NHA*\",AJ2)),AJ2,AM2)","v":{"$error":"#VALUE!"}}]
[null,"Address:",null,null,null,"386 Raymond Rd.",null,null,null,null,null,null,null,null,null,null,null,null,null,null,"Time In:",null,null,"08:02 AM",null,null,null,null,null,null,null,null,null,null,null,{"$f":"IF(ISNUMBER(SEARCH(\"*(NHA*\",#REF!)),AJ2,IF(ISNUMBER(SEARCH(\"*(NJT*\",AJ2)),AJ2,AN2))","v":{"$error":"#VALUE!"}}]
[null,"Technician(s):",null,null,null,"AJ Mack /Larry Hardin",null,null,null,null,null,null,null,null,null,null,null,null,null,null,"Time Out:",null,null,"08:07 AM",null,null,null,null,null,null,null,null,null,null,null,{"$f":"IFERROR(AJ3,AJ2)","v":"{Customer_Name}"}]
[null,"Escort:",null,null,null,"Sam"]
[]
[null,"Building/Unit #:",null,null,null,"43 C",null,null,null,null,null,null,null,null,null,null,null,null,null,"Apartment too cluttered to treat?",null,null,null,null,null,null,null,null,"No"]
[null,null,null,null,null,null,null,null,null,null,null,null,null,null,null,null,null,null,null,null,null,null,null,null,null,null,null,null,null,null,null,null,{"$f":"SUBSTITUTE(AH8,\",\",\"; \")","v":"Mattress; Box Spring; Bed Frame"},"Mattress,Box Spring,Bed Frame"]
[null,null,null,null,null,null,null,null,null,null,null,null,null,null,null,null,null,null,null,null,null,null,null,null,null,null,null,null,null,null,null,null,{"$f":"SUBSTITUTE(AH9,\",\",\"; \")","v":""}]
[null,null,null,null,null,null,null,null,null,null,null,null,null,null,null,null,null,null,null,null,null,null,null,null,null,null,null,null,null,null,null,null,""]
[null,"Bedroom 2",null,null,null,null,null,null,null,null,null,null,null,null,null,null,null,null,null,null,null,null,null,null,null,null,null,null,null,null,null,null,""]
[null,"Anything stored under the bed?",null,null,null,null,null,null,"No",null,null,"Anything stored under the bed?",null,null,null,null,null,null,null,null,null,"Anything stored under the bed?",null,null,null,null,null,null,null,null,null,null,""]
[null,"Areas where bed bug activity is present.",null,null,null,null,null,null,null,null,null,"Areas where bed bug activity is present.",null,null,null,null,null,null,null,null,null,"Areas where bed bug activity is present.",null,null,null,null,null,null,null,null,null,null,""]
[null,{"$f":"AG8","v":"Mattress; Box Spring; Bed Frame"},null,null,null,null,null,null,null,null,null,{"$f":"AG9","v":""},null,null,null,null,null,null,null,null,null,{"$f":"AG11","v":""},null,null,null,null,null,null,null,null,null,null,"No Activity Present","No Activity Present"]
[null,null,null,null,null,null,null,null,null,null,null,null,null,null,null,null,null,null,null,null,null,null,null,null,null,null,null,null,null,null,null,null,"No Activity Present","No Activity Present"]
[null,null,null,null,null,null,null,null,null,null,null,null,null,null,null,null,null,null,null,null,null,null,null,null,null,null,null,null,null,null,null,null,"No Activity Present","No Activity Present"]
[null,null,null,null,null,null,null,null,null,null,null,null,null,null,null,null,null,null,null,null,null,null,null,null,null,null,null,null,null,null,null,null,"No Activity Present","No Activity Present"]
[]
[]
[null,"Anything stored under the bed?",null,null,null,null,null,null,null,null,null,"Anything stored under the bed?"]
[null,"Areas where bed bug activity is present.",null,null,null,null,null,null,null,null,null,"Areas where bed bug activity is present."]
[null,{"$f":"AG12","v":""},null,null,null,null,null,null,null,null,null,{"$f":"AG13","v":""}]
[]
[]
[]
[]
[null,"Living Room",null,null,null,null,null,null,null,null,null,null,null,null,null,"Kitchen/Dining"]
[null,{"$f":"AG14","v":"No Activity Present"},null,null,null,null,null,null,null,null,null,null,null,null,null,{"$f":"AG15","v":"No Activity Present"}]
[]
[]
[]
[null,"Bathroom(s)",null,null,null,null,null,null,null,null,null,null,null,null,null,"Hall Closet(s)"]
[null,{"$f":"AG16","v":"No Activity Present"},null,null,null,null,null,null,null,null,null,null,null,null,null,{"$f":"AG17","v":"No Activity Present"}]
[]
[]
[]
[null,"",null,null,null,null,null,null,"",null,null,null,null,null,null,"",null,null,null,null,null,null,""]
[]
[]
[]
[]
[]
[]
[null,"",null,null,null,null,null,null,"",null,null,null,null,null,null,"",null,null,null,null,null,null,""]
[]
[]
[]
[]
[]
[]
[null,"",null,null,null,null,null,null,"",null,null,null,null,null,null,"",null,null,null,null,null,null,""]
[]
[]
[]
[]
[]
[]
[null,"Building/Unit #:",null,null,null,null,null,null,null,null,null,null,null,null,null,null,null,null,null,"Apartment too cluttered to treat?"]
[null,null,null,null,null,null,null,null,null,null,null,null,null,null,null,null,null,null,null,null,null,null,null,null,null,null,null,null,null,null,null,null,{"$f":"SUBSTITUTE(AH59,\",\",\"; \")","v":""}]
[null,null,null,null,null,null,null,null,null,null,null,null,null,null,null,null,null,null,null,null,null,null,null,null,null,null,null,null,null,null,null,null,{"$f":"SUBSTITUTE(AH60,\",\",\"; \")","v":""}]
[null,null,null,null,null,null,null,null,null,null,null,null,null,null,null,null,null,null,null,null,null,null,null,null,null,null,null,null,null,null,null,null,""]
[null,null,null,null,null,null,null,null,null,null,null,null,null,null,null,null,null,null,null,null,null,null,null,null,null,null,null,null,null,null,null,null,""]
[null,"Anything stored under the bed?",null,null,null,null,null,null,null,null,null,"Anything stored under the bed?",null,null,null,null,null,null,null,null,null,"Anything stored under the bed?",null,null,null,null,null,null,null,null,null,null,""]
[null,"Areas where bed bug activity is present.",null,null,null,null,null,null,null,null,null,"Areas where bed bug activity is present.",null,null,null,null,null,null,null,null,null,"Areas where bed bug activity is present.",null,null,null,null,null,null,null,null,null,null,""]
[null,{"$f":"AG59","v":""},null,null,null,null,null,null,null,null,null,{"$f":"AG60","v":""},null,null,null,null,null,null,null,null,null,{"$f":"AG62","v":""},null,null,null,null,null,null,null,null,null,null,""]
[null,null,null,null,null,null,null,null,null,null,null,null,null,null,null,null,null,null,null,null,null,null,null,null,null,null,null,null,null,null,null,null,""]
[null,null,null,null,null,null,null,null,null,null,null,null,null,null,null,null,null,null,null,null,null,null,null,null,null,null,null,null,null,null,null,null,""]
[null,null,null,null,null,null,null,null,null,null,null,null,null,null,null,null,null,null,null,null,null,null,null,null,null,null,null,null,null,null,null,null,""]
[]
[]
[null,"Anything stored under the bed?",null,null,null,null,null,null,null,null,null,"Anything stored under the bed?"]
[null,"Areas where bed bug activity is present.",null,null,null,null,null,null,null,null,null,"Areas where bed bug activity is present."]
[null,{"$f":"AG63","v":""},null,null,null,null,null,null,null,null,null,{"$f":"AG64","v":""}]
[]
[]
[]
[]
[null,"Living Room",null,null,null,null,null,null,null,null,null,null,null,null,null,"Kitchen/Dining"]
[null,{"$f":"AG65","v":""},null,null,null,null,null,null,null,null,null,null,null,null,null,{"$f":"AG66","v":""}]
[]
[]
[]
[null,"Bathroom(s)",null,null,null,null,null,null,null,null,null,null,null,null,null,"Hall Closet(s)"]
[null,{"$f":"AG67","v":""},null,null,null,null,null,null,null,null,null,null,null,null,null,{"$f":"AG68","v":""}]
[]
[]
[]
[null,"",null,null,null,null,null,null,"",null,null,null,null,null,null,"",null,null,null,null,null,null,""]
[]
[]
[]
[]
[]
[]
[null,"",null,null,null,null,null,null,"",null,null,null,null,null,null,"",null,null,null,null,null,null,""]
[]
[]
[]
[]
[]
[]
[null,"",null,null,null,null,null,null,"",null,null,null,null,null,null,"",null,null,null,null,null,null,""]
[]
[]
[]
[]
[]
[]
[null,"Building/Unit #:",null,null,null,null,null,null,null,null,null,null,null,null,null,null,null,null,null,"Apartment too cluttered to treat?"]
[null,null,null,null,null,null,null,null,null,null,null,null,null,null,null,null,null,null,null,null,null,null,null,null,null,null,null,null,null,null,null,null,{"$f":"SUBSTITUTE(AH110,\",\",\"; \")","v":""}]
[null,null,null,null,null,null,null,null,null,null,null,null,null,null,null,null,null,null,null,null,null,null,null,null,null,null,null,null,null,null,null,null,{"$f":"SUBSTITUTE(AH111,\",\",\"; \")","v":""}]
[null,null,null,null,null,null,null,null,null,null,null,null,null,null,null,null,null,null,null,null,null,null,null,null,null,null,null,null,null,null,null,null,""]
[null,null,null,null,null,null,null,null,null,null,null,null,null,null,null,null,null,null,null,null,null,null,null,null,null,null,null,null,null,null,null,null,""]
[null,"Anything stored under the bed?",null,null,null,null,null,null,null,null,null,"Anything stored under the bed?",null,null,null,null,null,null,null,null,null,"Anything stored under the bed?",null,null,null,null,null,null,null,null,null,null,""]
[null,"Areas where bed bug activity is present.",null,null,null,null,null,null,null,null,null,"Areas where bed bug activity is present.",null,null,null,null,null,null,null,null,null,"Areas where bed bug activity is present.",null,null,null,null,null,null,null,null,null,null,""]
[null,{"$f":"AG110","v":""},null,null,null,null,null,null,null,null,null,{"$f":"AG111","v":""},null,null,null,null,null,null,null,null,null,{"$f":"AG113","v":""},null,null,null,null,null,null,null,null,null,null,""]
[null,null,null,null,null,null,null,null,null,null,null,null,null,null,null,null,null,null,null,null,null,null,null,null,null,null,null,null,null,null,null,null,""]
[null,null,null,null,null,null,null,null,null,null,null,null,null,null,null,null,null,null,null,null,null,null,null,null,null,null,null,null,null,null,null,null,""]
[null,null,null,null,null,null,null,null,null,null,null,null,null,null,null,null,null,null,null,null,null,null,null,null,null,null,null,null,null,null,null,null,""]
[]
[]
[null,"Anything stored under the bed?",null,null,null,null,null,null,null,null,null,"Anything stored under the bed?"]
[null,"Areas where bed bug activity is present.",null,null,null,null,null,null,null,null,null,"Areas where bed bug activity is present."]
[null,{"$f":"AG114","v":""},null,null,null,null,null,null,null,null,null,{"$f":"AG115","v":""}]
[]
[]
[]
[]
[null,"Living Room",null,null,null,null,null,null,null,null,null,null,null,null,null,"Kitchen/Dining"]
[null,{"$f":"AG116","v":""},null,null,null,null,null,null,null,null,null,null,null,null,null,{"$f":"AG117","v":""}]
[]
[]
[]
[null,"Bathroom(s)",null,null,null,null,null,null,null,null,null,null,null,null,null,"Hall Closet(s)"]
[null,{"$f":"AG118","v":""},null,null,null,null,null,null,null,null,null,null,null,null,null,{"$f":"AG119","v":""}]
[]
[]
[]
[null,"",null,null,null,null,null,null,"",null,null,null,null,null,null,"",null,null,null,null,null,null,""]
[]
[]
[]
[]
[]
[]
[null,"",null,null,null,null,null,null,"",null,null,null,null,null,null,"",null,null,null,null,null,null,""]
[]
[]
[]
[]
[]
[]
[null,"",null,null,null,null,null,null,"",null,null,null,null,null,null,"",null,null,null,null,null,null,""]
[]
[]
[]
[]
[]
[]
[null,"Building/Unit #:",null,null,null,null,null,null,null,null,null,null,null,null,null,null,null,null,null,"Apartment too cluttered to treat?"]
[null,null,null,null,null,null,null,null,null,null,null,null,null,null,null,null,null,null,null,null,null,null,null,null,null,null,null,null,null,null,null,null,{"$f":"SUBSTITUTE(AH161,\",\",\"; \")","v":""}]
[null,null,null,null,null,null,null,null,null,null,null,null,null,null,null,null,null,null,null,null,null,null,null,null,null,null,null,null,null,null,null,null,{"$f":"SUBSTITUTE(AH162,\",\",\"; \")","v":""}]
[null,null,null,null,null,null,null,null,null,null,null,null,null,null,null,null,null,null,null,null,null,null,null,null,null,null,null,null,null,null,null,null,""]
[null,null,null,null,null,null,null,null,null,null,null,null,null,null,null,null,null,null,null,null,null,null,null,null,null,null,null,null,null,null,null,null,""]
[null,"Anything stored under the bed?",null,null,null,null,null,null,null,null,null,"Anything stored under the bed?",null,null,null,null,null,null,null,null,null,"Anything stored under the bed?",null,null,null,null,null,null,null,null,null,null,""]
[null,"Areas where bed bug activity is present.",null,null,null,null,null,null,null,null,null,"Areas where bed bug activity is present.",null,null,null,null,null,null,null,null,null,"Areas where bed bug activity is present.",null,null,null,null,null,null,null,null,null,null,""]
[null,{"$f":"AG161","v":""},null,null,null,null,null,null,null,null,null,{"$f":"AG162","v":""},null,null,null,null,null,null,null,null,null,{"$f":"AG164","v":""},null,null,null,null,null,null,null,null,null,null,""]
[null,null,null,null,null,null,null,null,null,null,null,null,null,null,null,null,null,null,null,null,null,null,null,null,null,null,null,null,null,null,null,null,""]
[null,null,null,null,null,null,null,null,null,null,null,null,null,null,null,null,null,null,null,null,null,null,null,null,null,null,null,null,null,null,null,null,""]
[null,null,null,null,null,null,null,null,null,null,null,null,null,null,null,null,null,null,null,null,null,null,null,null,null,null,null,null,null,null,null,null,""]
[]
[]
[null,"Anything stored under the bed?",null,null,null,null,null,null,null,null,null,"Anything stored under the bed?"]
[null,"Areas where bed bug activity is present.",null,null,null,null,null,null,null,null,null,"Areas where bed bug activity is present."]
[null,{"$f":"AG165","v":""},null,null,null,null,null,null,null,null,null,{"$f":"AG166","v":""}]
[]
[]
[]
[]
[null,"Living Room",null,null,null,null,null,null,null,null,null,null,null,null,null,"Kitchen/Dining"]
[null,{"$f":"AG167","v":""},null,null,null,null,null,null,null,null,null,null,null,null,null,{"$f":"AG168","v":""}]
[]
[]
[]
[null,"Bathroom(s)",null,null,null,null,null,null,null,null,null,null,null,null,null,"Hall Closet(s)"]
[null,{"$f":"AG169","v":""},null,null,null,null,null,null,null,null,null,null,null,null,null,{"$f":"AG170","v":""}]
[]
[]
[]
[null,"",null,null,null,null,null,null,"",null,null,null,null,null,null,"",null,null,null,null,null,null,""]
[]
[]
[]
[]
[]
[]
[null,"",null,null,null,null,null,null,"",null,null,null,null,null,null,"",null,null,null,null,null,null,""]
[]
[]
[]
[]
[]
[]
[null,"",null,null,null,null,null,null,"",null,null,null,null,null,null,"",null,null,null,null,null,null,""]
[]
[]
[]
[]
[]
[]
[null,"Building/Unit #:",null,null,null,null,null,null,null,null,null,null,null,null,null,null,null,null,null,"Apartment too cluttered to treat?"]
[null,null,null,null,null,null,null,null,null,null,null,null,null,null,null,null,null,null,null,null,null,null,null,null,null,null,null,null,null,null,null,null,{"$f":"SUBSTITUTE(AH212,\",\",\"; \")","v":""}]
[null,null,null,null,null,null,null,null,null,null,null,null,null,null,null,null,null,null,null,null,null,null,null,null,null,null,null,null,null,null,null,null,{"$f":"SUBSTITUTE(AH213,\",\",\"; \")","v":""}]
[null,null,null,null,null,null,null,null,null,null,null,null,null,null,null,null,null,null,null,null,null,null,null,null,null,null,null,null,null,null,null,null,""]
[null,null,null,null,null,null,null,null,null,null,null,null,null,null,null,null,null,null,null,null,null,null,null,null,null,null,null,null,null,null,null,null,""]
[null,"Anything stored under the bed?",null,null,null,null,null,null,null,null,null,"Anything stored under the bed?",null,null,null,null,null,null,null,null,null,"Anything stored under the bed?",null,null,null,null,null,null,null,null,null,null,""]
[null,"Areas where bed bug activity is present.",null,null,null,null,null,null,null,null,null,"Areas where bed bug activity is present.",null,null,null,null,null,null,null,null,null,"Areas where bed bug activity is present.",null,null,null,null,null,null,null,null,null,null,""]
[null,{"$f":"AG212","v":""},null,null,null,null,null,null,null,null,null,{"$f":"AG213","v":""},null,null,null,null,null,null,null,null,null,{"$f":"AG215","v":""},null,null,null,null,null,null,null,null,null,null,""]
[null,null,null,null,null,null,null,null,null,null,null,null,null,null,null,null,null,null,null,null,null,null,null,null,null,null,null,null,null,null,null,null,""]
[null,null,null,null,null,null,null,null,null,null,null,null,null,null,null,null,null,null,null,null,null,null,null,null,null,null,null,null,null,null,null,null,""]
[null,null,null,null,null,null,null,null,null,null,null,null,null,null,null,null,null,null,null,null,null,null,null,null,null,null,null,null,null,null,null,null,""]
[]
[]
[null,"Anything stored under the bed?",null,null,null,null,null,null,null,null,null,"Anything stored under the bed?"]
[null,"Areas where bed bug activity is present.",null,null,null,null,null,null,null,null,null,"Areas where bed bug activity is present."]
[null,{"$f":"AG216","v":""},null,null,null,null,null,null,null,null,null,{"$f":"AG217","v":""}]
[]
[]
[]
[]
[null,"Living Room",null,null,null,null,null,null,null,null,null,null,null,null,null,"Kitchen/Dining"]
[null,{"$f":"AG218","v":""},null,null,null,null,null,null,null,null,null,null,null,null,null,{"$f":"AG219","v":""}]
[]
[]
[]
[null,"Bathroom(s)",null,null,null,null,null,null,null,null,null,null,null,null,null,"Hall Closet(s)"]
[null,{"$f":"AG220","v":""},null,null,null,null,null,null,null,null,null,null,null,null,null,{"$f":"AG221","v":""}]
[]
[]
[]
[null,"",null,null,null,null,null,null,"",null,null,null,null,null,null,"",null,null,null,null,null,null,""]
[]
[]
[]
[]
[]
[]
[null,"",null,null,null,null,null,null,"",null,null,null,null,null,null,"",null,null,null,null,null,null,""]
[]
[]
[]
[]
[]
[]
[null,"",null,null,null,null,null,null,"",null,null,null,null,null,null,"",null,null,null,null,null,null,""]
[]
[]
[]
[]
[]
[]
[null,"Building/Unit #:",null,null,null,null,null,null,null,null,null,null,null,null,null,null,null,null,null,"Apartment too cluttered to treat?"]
[null,null,null,null,null,null,null,null,null,null,null,null,null,null,null,null,null,null,null,null,null,null,null,null,null,null,null,null,null,null,null,null,{"$f":"SUBSTITUTE(AH263,\",\",\"; \")","v":""}]
[null,null,null,null,null,null,null,null,null,null,null,null,null,null,null,null,null,null,null,null,null,null,null,null,null,null,null,null,null,null,null,null,{"$f":"SUBSTITUTE(AH264,\",\",\"; \")","v":""}]
[null,null,null,null,null,null,null,null,null,null,null,null,null,null,null,null,null,null,null,null,null,null,null,null,null,null,null,null,null,null,null,null,""]
[null,null,null,null,null,null,null,null,null,null,null,null,null,null,null,null,null,null,null,null,null,null,null,null,null,null,null,null,null,null,null,null,""]
[null,"Anything stored under the bed?",null,null,null,null,null,null,null,null,null,"Anything stored under the bed?",null,null,null,null,null,null,null,null,null,"Anything stored under the bed?",null,null,null,null,null,null,null,null,null,null,""]
[null,"Areas where bed bug activity is present.",null,null,null,null,null,null,null,null,null,"Areas where bed bug activity is present.",null,null,null,null,null,null,null,null,null,"Areas where bed bug activity is present.",null,null,null,null,null,null,null,null,null,null,""]
[null,{"$f":"AG263","v":""},null,null,null,null,null,null,null,null,null,{"$f":"AG264","v":""},null,null,null,null,null,null,null,null,null,{"$f":"AG266","v":""},null,null,null,null,null,null,null,null,null,null,""]
[null,null,null,null,null,null,null,null,null,null,null,null,null,null,null,null,null,null,null,null,null,null,null,null,null,null,null,null,null,null,null,null,""]
[null,null,null,null,null,null,null,null,null,null,null,null,null,null,null,null,null,null,null,null,null,null,null,null,null,null,null,null,null,null,null,null,""]
[null,null,null,null,null,null,null,null,null,null,null,null,null,null,null,null,null,null,null,null,null,null,null,null,null,null,null,null,null,null,null,null,""]
[]
[]
[null,"Anything stored under the bed?",null,null,null,null,null,null,null,null,null,"Anything stored under the bed?"]
[null,"Areas where bed bug activity is present.",null,null,null,null,null,null,null,null,null,"Areas where bed bug activity is present."]
[null,{"$f":"AG267","v":""},null,null,null,null,null,null,null,null,null,{"$f":"AG268","v":""}]
[]
[]
[]
[]
[null,"Living Room",null,null,null,null,null,null,null,null,null,null,null,null,null,"Kitchen/Dining"]
[null,{"$f":"AG269","v":""},null,null,null,null,null,null,null,null,null,null,null,null,null,{"$f":"AG270","v":""}]
[]
[]
[]
[null,"Bathroom(s)",null,null,null,null,null,null,null,null,null,null,null,null,null,"Hall Closet(s)"]
[null,{"$f":"AG271","v":""},null,null,null,null,null,null,null,null,null,null,null,null,null,{"$f":"AG272","v":""}]
[]
[]
[]
[null,"",null,null,null,null,null,null,"",null,null,null,null,null,null,"",null,null,null,null,null,null,""]
[]
[]
[]
[]
[]
[]
[null,"",null,null,null,null,null,null,"",null,null,null,null,null,null,"",null,null,null,null,null,null,""]
[]
[]
[]
[]
[]
[]
[null,"",null,null,null,null,null,null,"",null,null,null,null,null,null,"",null,null,null,null,null,null,""]
[]
[]
[]
[]
[]
[]
[null,"Building/Unit #:",null,null,null,null,null,null,null,null,null,null,null,null,null,null,null,null,null,"Apartment too cluttered to treat?"]
[null,null,null,null,null,null,null,null,null,null,null,null,null,null,null,null,null,null,null,null,null,null,null,null,null,null,null,null,null,null,null,null,{"$f":"SUBSTITUTE(AH314,\",\",\"; \")","v":""}]
[null,null,null,null,null,null,null,null,null,null,null,null,null,null,null,null,null,null,null,null,null,null,null,null,null,null,null,null,null,null,null,null,{"$f":"SUBSTITUTE(AH315,\",\",\"; \")","v":""}]
[null,null,null,null,null,null,null,null,null,null,null,null,null,null,null,null,null,null,null,null,null,null,null,null,null,null,null,null,null,null,null,null,""]
[null,null,null,null,null,null,null,null,null,null,null,null,null,null,null,null,null,null,null,null,null,null,null,null,null,null,null,null,null,null,null,null,""]
[null,"Anything stored under the bed?",null,null,null,null,null,null,null,null,null,"Anything stored under the bed?",null,null,null,null,null,null,null,null,null,"Anything stored under the bed?",null,null,null,null,null,null,null,null,null,null,""]
[null,"Areas where bed bug activity is present.",null,null,null,null,null,null,null,null,null,"Areas where bed bug activity is present.",null,null,null,null,null,null,null,null,null,"Areas where bed bug activity is present.",null,null,null,null,null,null,null,null,null,null,""]
[null,{"$f":"AG314","v":""},null,null,null,null,null,null,null,null,null,{"$f":"AG315","v":""},null,null,null,null,null,null,null,null,null,{"$f":"AG317","v":""},null,null,null,null,null,null,null,null,null,null,""]
[null,null,null,null,null,null,null,null,null,null,null,null,null,null,null,null,null,null,null,null,null,null,null,null,null,null,null,null,null,null,null,null,""]
[null,null,null,null,null,null,null,null,null,null,null,null,null,null,null,null,null,null,null,null,null,null,null,null,null,null,null,null,null,null,null,null,""]
[null,null,null,null,null,null,null,null,null,null,null,null,null,null,null,null,null,null,null,null,null,null,null,null,null,null,null,null,null,null,null,null,""]
[]
[]
[null,"Anything stored under the bed?",null,null,null,null,null,null,null,null,null,"Anything stored under the bed?"]
[null,"Areas where bed bug activity is present.",null,null,null,null,null,null,null,null,null,"Areas where bed bug activity is present."]
[null,{"$f":"AG318","v":""},null,null,null,null,null,null,null,null,null,{"$f":"AG319","v":""}]
[]
[]
[]
[]
[null,"Living Room",null,null,null,null,null,null,null,null,null,null,null,null,null,"Kitchen/Dining"]
[null,{"$f":"AG320","v":""},null,null,null,null,null,null,null,null,null,null,null,null,null,{"$f":"AG321","v":""}]
[]
[]
[]
[null,"Bathroom(s)",null,null,null,null,null,null,null,null,null,null,null,null,null,"Hall Closet(s)"]
[null,{"$f":"AG322","v":""},null,null,null,null,null,null,null,null,null,null,null,null,null,{"$f":"AG323","v":""}]
[]
[]
[]
[null,"",null,null,null,null,null,null,"",null,null,null,null,null,null,"",null,null,null,null,null,null,""]
[]
[]
[]
[]
[]
[]
[null,"",null,null,null,null,null,null,"",null,null,null,null,null,null,"",null,null,null,null,null,null,""]
[]
[]
[]
[]
[]
[]
[null,"",null,null,null,null,null,null,"",null,null,null,null,null,null,"",null,null,null,null,null,null,""]
[]
[]
[]
[]
[]
[]
[null,"Building/Unit #:",null,null,null,null,null,null,null,null,null,null,null,null,null,null,null,null,null,"Apartment too cluttered to treat?"]
[null,null,null,null,null,null,null,null,null,null,null,null,null,null,null,null,null,null,null,null,null,null,null,null,null,null,null,null,null,null,null,null,{"$f":"SUBSTITUTE(AH365,\",\",\"; \")","v":""}]
[null,null,null,null,null,null,null,null,null,null,null,null,null,null,null,null,null,null,null,null,null,null,null,null,null,null,null,null,null,null,null,null,{"$f":"SUBSTITUTE(AH366,\",\",\"; \")","v":""}]
[null,null,null,null,null,null,null,null,null,null,null,null,null,null,null,null,null,null,null,null,null,null,null,null,null,null,null,null,null,null,null,null,""]
[null,null,null,null,null,null,null,null,null,null,null,null,null,null,null,null,null,null,null,null,null,null,null,null,null,null,null,null,null,null,null,null,""]
[null,"Anything stored under the bed?",null,null,null,null,null,null,null,null,null,"Anything stored under the bed?",null,null,null,null,null,null,null,null,null,"Anything stored under the bed?",null,null,null,null,null,null,null,null,null,null,""]
[null,"Areas where bed bug activity is present.",null,null,null,null,null,null,null,null,null,"Areas where bed bug activity is present.",null,null,null,null,null,null,null,null,null,"Areas where bed bug activity is present.",null,null,null,null,null,null,null,null,null,null,""]
[null,{"$f":"AG365","v":""},null,null,null,null,null,null,null,null,null,{"$f":"AG366","v":""},null,null,null,null,null,null,null,null,null,{"$f":"AG368","v":""},null,null,null,null,null,null,null,null,null,null,""]
[null,null,null,null,null,null,null,null,null,null,null,null,null,null,null,null,null,null,null,null,null,null,null,null,null,null,null,null,null,null,null,null,""]
[null,null,null,null,null,null,null,null,null,null,null,null,null,null,null,null,null,null,null,null,null,null,null,null,null,null,null,null,null,null,null,null,""]
[null,null,null,null,null,null,null,null,null,null,null,null,null,null,null,null,null,null,null,null,null,null,null,null,null,null,null,null,null,null,null,null,""]
[]
[]
[null,"Anything stored under the bed?",null,null,null,null,null,null,null,null,null,"Anything stored under the bed?"]
[null,"Areas where bed bug activity is present.",null,null,null,null,null,null,null,null,null,"Areas where bed bug activity is present."]
[null,{"$f":"AG369","v":""},null,null,null,null,null,null,null,null,null,{"$f":"AG370","v":""}]
[]
[]
[]
[]
[null,"Living Room",null,null,null,null,null,null,null,null,null,null,null,null,null,"Kitchen/Dining"]
[null,{"$f":"AG371","v":""},null,null,null,null,null,null,null,null,null,null,null,null,null,{"$f":"AG372","v":""}]
[]
[]
[]
[null,"Bathroom(s)",null,null,null,null,null,null,null,null,null,null,null,null,null,"Hall Closet(s)"]
[null,{"$f":"AG373","v":""},null,null,null,null,null,null,null,null,null,null,null,null,null,{"$f":"AG374","v":""}]
[]
[]
[]
[null,"",null,null,null,null,null,null,"",null,null,null,null,null,null,"",null,null,null,null,null,null,""]
[]
[]
[]
[]
[]
[]
[null,"",null,null,null,null,null,null,"",null,null,null,null,null,null,"",null,null,null,null,null,null,""]
[]
[]
[]
[]
[]
[]
[null,"",null,null,null,null,null,null,"",null,null,null,null,null,null,"",null,null,null,null,null,null,""]
[]
[]
[]
[]
[]
[]
[null,"Building/Unit #:",null,null,null,null,null,null,null,null,null,null,null,null,null,null,null,null,null,"Apartment too cluttered to treat?"]
[null,null,null,null,null,null,null,null,null,null,null,null,null,null,null,null,null,null,null,null,null,null,null,null,null,null,null,null,null,null,null,null,{"$f":"SUBSTITUTE(AH416,\",\",\"; \")","v":""}]
[null,null,null,null,null,null,null,null,null,null,null,null,null,null,null,null,null,null,null,null,null,null,null,null,null,null,null,null,null,null,null,null,{"$f":"SUBSTITUTE(AH417,\",\",\"; \")","v":""}]
[null,null,null,null,null,null,null,null,null,null,null,null,null,null,null,null,null,null,null,null,null,null,null,null,null,null,null,null,null,null,null,null,""]
[null,null,null,null,null,null,null,null,null,null,null,null,null,null,null,null,null,null,null,null,null,null,null,null,null,null,null,null,null,null,null,null,""]
[null,"Anything stored under the bed?",null,null,null,null,null,null,null,null,null,"Anything stored under the bed?",null,null,null,null,null,null,null,null,null,"Anything stored under the bed?",null,null,null,null,null,null,null,null,null,null,""]
[null,"Areas where bed bug activity is present.",null,null,null,null,null,null,null,null,null,"Areas where bed bug activity is present.",null,null,null,null,null,null,null,null,null,"Areas where bed bug activity is present.",null,null,null,null,null,null,null,null,null,null,""]
[null,{"$f":"AG416","v":""},null,null,null,null,null,null,null,null,null,{"$f":"AG417","v":""},null,null,null,null,null,null,null,null,null,{"$f":"AG419","v":""},null,null,null,null,null,null,null,null,null,null,""]
[null,null,null,null,null,null,null,null,null,null,null,null,null,null,null,null,null,null,null,null,null,null,null,null,null,null,null,null,null,null,null,null,""]
[null,null,null,null,null,null,null,null,null,null,null,null,null,null,null,null,null,null,null,null,null,null,null,null,null,null,null,null,null,null,null,null,""]
[null,null,null,null,null,null,null,null,null,null,null,null,null,null,null,null,null,null,null,null,null,null,null,null,null,null,null,null,null,null,null,null,""]
[]
[]
[null,"Anything stored under the bed?",null,null,null,null,null,null,null,null,null,"Anything stored under the bed?"]
[null,"Areas where bed bug activity is present.",null,null,null,null,null,null,null,null,null,"Areas where bed bug activity is present."]
[null,{"$f":"AG420","v":""},null,null,null,null,null,null,null,null,null,{"$f":"AG421","v":""}]
[]
[]
[]
[]
[null,"Living Room",null,null,null,null,null,null,null,null,null,null,null,null,null,"Kitchen/Dining"]
[null,{"$f":"AG422","v":""},null,null,null,null,null,null,null,null,null,null,null,null,null,{"$f":"AG423","v":""}]
[]
[]
[]
[null,"Bathroom(s)",null,null,null,null,null,null,null,null,null,null,null,null,null,"Hall Closet(s)"]
[null,{"$f":"AG424","v":""},null,null,null,null,null,null,null,null,null,null,null,null,null,{"$f":"AG425","v":""}]
[]
[]
[]
[null,"",null,null,null,null,null,null,"",null,null,null,null,null,null,"",null,null,null,null,null,null,""]
[]
[]
[]
[]
[]
[]
[null,"",null,null,null,null,null,null,"",null,null,null,null,null,null,"",null,null,null,null,null,null,""]
[]
[]
[]
[]
[]
[]
[null,"",null,null,null,null,null,null,"",null,null,null,null,null,null,"",null,null,null,null,null,null,""]
[]
[]
[]
[]
[]
[]
[null,"Building/Unit #:",null,null,null,null,null,null,null,null,null,null,null,null,null,null,null,null,null,"Apartment too cluttered to treat?"]
[null,null,null,null,null,null,null,null,null,null,null,null,null,null,null,null,null,null,null,null,null,null,null,null,null,null,null,null,null,null,null,null,{"$f":"SUBSTITUTE(AH467,\",\",\"; \")","v":""}]
[null,null,null,null,null,null,null,null,null,null,null,null,null,null,null,null,null,null,null,null,null,null,null,null,null,null,null,null,null,null,null,null,{"$f":"SUBSTITUTE(AH468,\",\",\"; \")","v":""}]
[null,null,null,null,null,null,null,null,null,null,null,null,null,null,null,null,null,null,null,null,null,null,null,null,null,null,null,null,null,null,null,null,""]
[null,null,null,null,null,null,null,null,null,null,null,null,null,null,null,null,null,null,null,null,null,null,null,null,null,null,null,null,null,null,null,null,""]
[null,"Anything stored under the bed?",null,null,null,null,null,null,null,null,null,"Anything stored under the bed?",null,null,null,null,null,null,null,null,null,"Anything stored under the bed?",null,null,null,null,null,null,null,null,null,null,""]
[null,"Areas where bed bug activity is present.",null,null,null,null,null,null,null,null,null,"Areas where bed bug activity is present.",null,null,null,null,null,null,null,null,null,"Areas where bed bug activity is present.",null,null,null,null,null,null,null,null,null,null,""]
[null,{"$f":"AG467","v":""},null,null,null,null,null,null,null,null,null,{"$f":"AG468","v":""},null,null,null,null,null,null,null,null,null,{"$f":"AG470","v":""},null,null,null,null,null,null,null,null,null,null,""]
[null,null,null,null,null,null,null,null,null,null,null,null,null,null,null,null,null,null,null,null,null,null,null,null,null,null,null,null,null,null,null,null,""]
[null,null,null,null,null,null,null,null,null,null,null,null,null,null,null,null,null,null,null,null,null,null,null,null,null,null,null,null,null,null,null,null,""]
[null,null,null,null,null,null,null,null,null,null,null,null,null,null,null,null,null,null,null,null,null,null,null,null,null,null,null,null,null,null,null,null,""]
[]
[]
[null,"Anything stored under the bed?",null,null,null,null,null,null,null,null,null,"Anything stored under the bed?"]
[null,"Areas where bed bug activity is present.",null,null,null,null,null,null,null,null,null,"Areas where bed bug activity is present."]
[null,{"$f":"AG471","v":""},null,null,null,null,null,null,null,null,null,{"$f":"AG472","v":""}]
[]
[]
[]
[]
[null,"Living Room",null,null,null,null,null,null,null,null,null,null,null,null,null,"Kitchen/Dining"]
[null,{"$f":"AG473","v":""},null,null,null,null,null,null,null,null,null,null,null,null,null,{"$f":"AG474","v":""}]
[]
[]
[]
[null,"Bathroom(s)",null,null,null,null,null,null,null,null,null,null,null,null,null,"Hall Closet(s)"]
[null,{"$f":"AG475","v":""},null,null,null,null,null,null,null,null,null,null,null,null,null,{"$f":"AG476","v":""}]
[]
[]
[]
[null,"",null,null,null,null,null,null,"",null,null,null,null,null,null,"",null,null,null,null,null,null,""]
[]
[]
[]
[]
[]
[]
[null,"",null,null,null,null,null,null,"",null,null,null,null,null,null,"",null,null,null,null,null,null,""]
[]
[]
[]
[]
[]
[]
[null,"",null,null,null,null,null,null,"",null,null,null,null,null,null,"",null,null,null,null,null,null,""]

{"sheet":"OMR","index":1,"n_rows":57,"n_cols":27,"rows_kept":57,"cut":false,"hidden":true,"merged":[[45,0,50,28],[10,0,10,4],[10,5,10,12],[10,14,10,15],[10,16,10,28],[12,0,12,9],[12,11,12,18],[12,20,12,27],[13,0,13,3],[13,4,13,9],[13,11,13,14],[13,15,13,18],[13,20,13,24],[13,25,13,28],[14,15,14,18],[14,20,14,24],[18,26,18,28],[19,0,19,2],[19,3,19,12],[19,14,19,16],[19,19,19,21],[19,22,19,24],[19,26,19,28],[18,0,18,2],[5,22,5,28],[7,0,7,4],[7,5,7,28],[8,0,8,2],[8,3,8,28],[5,0,5,1],[5,2,5,4],[5,6,5,9],[5,10,5,16],[5,17,5,21],[14,25,14,28],[15,0,15,3],[15,4,15,9],[15,11,15,14],[15,15,15,18],[15,20,15,24],[15,25,15,28],[14,0,14,3],[14,4,14,9],[14,11,14,14],[21,26,21,28],[20,0,20,2],[20,3,20,12],[20,14,20,16],[20,19,20,21],[20,22,20,24],[18,3,18,12],[18,14,18,16],[18,19,18,21],[18,22,18,24],[20,26,20,28],[21,0,21,2],[21,3,21,12],[21,14,21,16],[21,19,21,21],[21,22,21,24],[22,26,22,28],[23,0,23,2],[23,3,23,11],[23,13,23,14],[23,16,23,17],[23,18,23,20],[23,21,23,23],[23,24,23,25],[23,26,23,28],[22,0,22,2],[22,3,22,12],[22,14,22,16],[22,19,22,21],[22,22,22,24],[24,21,24,23],[24,24,24,25],[24,3,24,11],[24,13,24,14],[24,16,24,17],[24,18,24,20],[24,26,24,28],[25,0,25,2],[25,3,25,11],[25,13,25,14],[25,16,25,17],[25,18,25,20],[25,21,25,23],[25,24,25,25],[25,26,25,28],[24,0,24,2],[26,21,26,23],[26,24,26,25],[26,26,26,28],[27,0,27,2],[27,3,27,11],[27,13,27,14],[27,16,27,17],[27,18,27,20],[27,21,27,23],[27,24,27,25],[55,16,55,28],[56,16,56,28],[55,0,55,12],[29,0,29,25],[30,0,38,28],[51,16,53,28],[2,0,2,8],[0,0,0,9],[0,10,2,23],[0,24,2,28],[1,0,1,9],[51,0,53,12],[40,0,40,28],[42,0,42,10],[42,11,42,14],[42,16,42,25],[42,26,42,28],[56,0,56,12],[27,26,27,28],[26,0,26,2],[26,3,26,11],[26,13,26,14],[26,16,26,17],[26,18,26,20]]}
["Corbett Exterminating",null,null,null,null,null,null,null,null,null,"Office Manager's Report"]
["Integrated Pest Management"]
["1-800-888-Pest"]
[]
[]
["Date:",null,"02/22/2016",null,null,null,"Time of arrival:",null,null,null,"08:02 AM",null,null,null,null,null,null,"Time of Departure:",null,null,null,null,"{Departure_Time}"]
[]
["Name of Complex:",null,null,null,null,"The Village Apts."]
["Address:",null,null,"386 Raymond Rd."]
[]
["Foundation Type:",null,null,null,null,"{Foundation}",null,null,null,null,null,null,null,null,"Other:",null,"{foundation_Other}"]
[]
["Interior Rodent Stations",null,null,null,null,null,null,null,null,null,null,"Exterior Rodent Stations",null,null,null,null,null,null,null,null,"Rodent Trapping"]
["# of Stations",null,null,null,"{Int_Number_of_Stations}",null,null,null,null,null,null,"# of Stations",null,null,null,"{Ext_Number_of_Stations}",null,null,null,null,"Mice Glue Boards",null,null,null,null,"{Mice_Glue_Boards}"]
["Replaced",null,null,null,"{Int_Replaced}",null,null,null,null,null,null,"Missing",null,null,null,"{Ext_Replaced}",null,null,null,null,"Rat Glue Boards",null,null,null,null,"{Rat_Glue_Boards}"]
["Mice Stations",null,null,null,"{Int_Mice_Stations}",null,null,null,null,null,null,"Damaged",null,null,null,"{Ext_Mice_Stations}",null,null,null,null,"Snap Traps",null,null,null,null,"{Snap_Traps}"]
[]
["Chemical Usage:"]
["Chemical",null,null,"{Chemical(1)}",null,null,null,null,null,null,null,null,null,null,"{Percentage(1)}",null,null,"%",null,"Amount",null,null,"{Amount(1)}",null,null,null,"{UOM1(1)}"]
["Chemical",null,null,"{Chemical(2)}",null,null,null,null,null,null,null,null,null,null,"{Percentage(2)}",null,null,"%",null,"Amount",null,null,"{Amount(2)}",null,null,null,"{UOM1(2)}"]
["Chemical",null,null,"{Chemical(3)}",null,null,null,null,null,null,null,null,null,null,"{Percentage(3)}",null,null,"%",null,"Amount",null,null,"{Amount(3)}",null,null,null,"{UOM1(3)}"]
["Chemical",null,null,"{Chemical(4)}",null,null,null,null,null,null,null,null,null,null,"{Percentage(4)}",null,null,"%",null,"Amount",null,null,"{Amount(4)}",null,null,null,"{UOM1(4)}"]
["Chemical",null,null,"{Chemical(5)}",null,null,null,null,null,null,null,null,null,null,"{Percentage(5)}",null,null,"%",null,"Amount",null,null,"{Amount(5)}",null,null,null,"{UOM1(5)}"]
["Rodenticide",null,null,"{Rodenticides(1)}",null,null,null,null,null,null,null,null,null,"{Rod_Percentage(1)}",null,"%","Amount",null,"{Rod_Amount(1)}",null,null,"{UOM2(1)}",null,null,"Rate",null,"{Rod_rate(1)}"]
["Rodenticide",null,null,"{Rodenticides(2)}",null,null,null,null,null,null,null,null,null,"{Rod_Percentage(2)}",null,"%","Amount",null,"{Rod_Amount(2)}",null,null,"{UOM2(2)}",null,null,"Rate",null,"{Rod_rate(1)}"]
["Rodenticide",null,null,"{Rodenticides(3)}",null,null,null,null,null,null,null,null,null,"{Rod_Percentage(3)}",null,"%","Amount",null,"{Rod_Amount(3)}",null,null,"{UOM2(3)}",null,null,"Rate",null,"{Rod_rate(1)}"]
["Rodenticide",null,null,"{Rodenticides(4)}",null,null,null,null,null,null,null,null,null,"{Rod_Percentage(4)}",null,"%","Amount",null,"{Rod_Amount(4)}",null,null,"{UOM2(4)}",null,null,"Rate",null,"{Rod_rate(1)}"]
["Rodenticide",null,null,"{Rodenticides(5)}",null,null,null,null,null,null,null,null,null,"{Rod_Percentage(5)}",null,"%","Amount",null,"{Rod_Amount(5)}",null,null,"{UOM2(5)}",null,null,"Rate",null,"{Rod_rate(1)}"]
[]
["P.C.O. Comments:"]
["{PCO_Comments2}"]
[]
[]
[]
[]
[]
[]
[]
[]
[]
["Site Manager Section"]
[]
["Were you satisfied with the technician(s)?",null,null,null,null,null,null,null,null,null,null,"{Were_you_satisfied_tech(1)}",null,null,null,null,"Were you satisfied with the service?",null,null,null,null,null,null,null,null,null,"{Were_you_satisfied_service(1)}"]
[]
["Manager's Comments:"]
["{Managers_Comments(1)}"]
[]
[]
[]
[]
[]
["{Site_Manager(1)}",null,null,null,null,null,null,null,null,null,null,null,null,null,null,null,"{PCO_Signature}"]
[]
[]
[]
["{Site_Managers_Name(1)}",null,null,null,null,null,null,null,null,null,null,null,null,null,null,null,"{Technician1}"]
["Manager's Name",null,null,null,null,null,null,null,null,null,null,null,null,null,null,null,"Technician"]

{"sheet":"Bed Bug Inspection","index":2,"n_rows":0,"n_cols":0,"rows_kept":0,"cut":false,"hidden":true,"merged":[]}

{"sheet":"Heat Evaluation","index":3,"n_rows":80,"n_cols":28,"rows_kept":80,"cut":false,"hidden":true,"merged":[[0,0,0,28],[60,0,60,26],[59,18,59,27],[59,1,59,10],[62,15,77,28],[62,0,77,13],[46,5,46,9],[47,0,47,10],[47,11,47,13],[47,16,47,24],[47,25,47,28],[48,0,48,21],[48,22,48,24],[46,10,46,28],[48,25,48,28],[45,0,45,2],[45,12,45,13],[45,14,45,17],[45,18,45,19],[45,20,45,23],[45,24,45,26],[45,27,45,28],[42,0,43,28],[45,4,45,11],[79,15,94,28],[79,0,94,13],[49,0,50,28],[52,0,52,8],[52,9,52,28],[54,18,57,27],[58,18,58,27],[54,1,57,10],[58,1,58,10],[39,5,39,9],[40,0,40,10],[40,11,40,13],[40,16,40,24],[40,25,40,28],[41,0,41,21],[41,22,41,24],[39,10,39,28],[41,25,41,28],[38,0,38,2],[38,12,38,13],[38,14,38,17],[38,18,38,19],[38,20,38,23],[38,24,38,26],[38,27,38,28],[38,4,38,11],[32,5,32,9],[33,0,33,10],[33,11,33,13],[33,15,33,23],[34,0,34,21],[34,22,34,24],[32,10,32,28],[33,24,33,28],[34,25,34,28],[31,0,31,2],[31,12,31,13],[31,14,31,17],[31,18,31,19],[31,20,31,23],[31,24,31,26],[31,27,31,28],[35,0,36,28],[28,0,29,28],[31,4,31,11],[25,5,25,9],[26,0,26,10],[26,15,26,23],[27,0,27,21],[27,22,27,24],[25,10,25,28],[26,24,26,28],[26,11,26,14],[27,25,27,28],[19,0,19,11],[20,0,20,26],[24,0,24,2],[24,12,24,13],[24,14,24,17],[24,18,24,19],[24,20,24,23],[24,27,24,28],[19,25,19,28],[19,16,19,24],[19,12,19,15],[21,0,22,28],[24,24,24,26],[24,4,24,11],[2,22,2,27],[10,3,10,6],[10,9,10,12],[3,16,3,27],[5,4,6,27],[4,19,4,21],[4,25,4,27],[4,22,4,24],[2,0,2,1],[2,2,2,6],[2,8,2,11],[2,12,2,15],[2,17,2,21],[10,22,10,23],[10,27,10,28],[9,25,9,28],[10,24,10,26],[10,18,10,19],[10,20,10,21],[3,0,3,2],[3,3,3,13],[3,14,3,15],[4,0,4,18],[5,0,6,3],[10,13,10,14],[10,16,10,17],[18,5,18,28],[9,0,9,1],[9,2,9,7],[9,8,9,15],[9,16,9,24],[10,0,10,2],[10,7,10,8],[11,0,11,8],[11,9,11,11],[11,14,11,16],[11,17,11,18],[12,0,12,26],[17,0,17,7],[13,0,15,28],[17,8,17,28]]}
["Bed Bug Intensive Thermal Evaluation - Step 1: Evaluation Form"]
[]
["Date:",null,"02/22/2016",null,null,null,null,null,"Time of Arrival:",null,null,null,"{Arrival_Time_label}",null,null,null,null,"Time of Departure:",null,null,null,null,"{Departure_Time}"]
["Complex:",null,null,"The Village Apts.",null,null,null,null,null,null,null,null,null,null,"Address",null,"386 Raymond Rd."]
["Did the technician review this form & their findings with management/maintenance?",null,null,null,null,null,null,null,null,null,null,null,null,null,null,null,null,null,null,"{Did_the_technician_review_this(1)}",null,null,"C/A Keyed?",null,null,"{Common_Areas_Keyed}"]
["Manager's Comments:",null,null,null,"{Managers_Comments(1)}"]
[]
[]
[]
["Set Up:",null,"Trailer can be parked at",null,null,null,null,null,"{Trailer_can_be_parked_at}",null,null,null,null,null,null,null,"Does Parking Need To Be Reserved?",null,null,null,null,null,null,null,null,"{Does_parking_need_to_be_reserv}"]
["Problem Unit",null,null,null,null,null,null,"# of B/Rs",null,"{HE_Number_of_Bedrooms}",null,null,null,"Levels",null,"{Number_of_levels}","Walls:",null,"{Walls}",null,"Floors:",null,"{Floors}",null,"Cluttered?",null,null,"{HE_Cluttered}"]
["What floor is the problem unit on?",null,null,null,null,null,null,null,null,"{What_floor_is_the_problem_unit}",null,null,null,null,"Unit Keyed?",null,null,"{Apartment_Door_Keyed}"]
["Specific locations and type of clutter:"]
["{Specific_locations_and_type_of}"]
[]
[]
[]
["Medical Equipment & Location:",null,null,null,null,null,null,null,"{Medical_Equipment_Location}"]
["Climb Ups Installed:",null,null,null,null,"{Number_Location_of_Climb_Ups_I}"]
["Are beds away from all walls and other furniture?",null,null,null,null,null,null,null,null,null,null,null,"{Are_beds_away_from_all_walls_a}",null,null,null,"Are blankets/sheets touching the floor?",null,null,null,null,null,null,null,null,"{Are_blankets_or_sheets_touchin}"]
["Notes:"]
["{Notes}"]
[]
[]
["Adjacent Unit",null,null,null,"{Adj_Unit(1)}",null,null,null,null,null,null,null,"Walls:",null,"{HE_Walls(1)}",null,null,null,"Floors:",null,"{HE_Floors(1)}",null,null,null,"Cluttered?",null,null,"{HE_adj_Cluttered(1)}"]
["Climb Ups Installed:",null,null,null,null,"Number & Location",null,null,null,null,"{HE_Number_Location_of_Climb_Up(1)}"]
["Are beds away from all walls and other furniture?",null,null,null,null,null,null,null,null,null,null,"{HE_beds_away_from_all_walls_a(1)}",null,null,null,"Are blankets/sheets touching the floor?",null,null,null,null,null,null,null,null,"{HE_blankets_or_sheets_touchin(1)}"]
["Notes:",null,null,null,null,null,null,null,null,null,null,null,null,null,null,null,null,null,null,null,null,null,"Access?",null,null,"{HE_Access(1)}"]
["{HE_Notes(1)}"]
[]
[]
["Adjacent Unit",null,null,null,"{adj_Unit(2)}",null,null,null,null,null,null,null,"Walls:",null,"{HE_Walls(2)}",null,null,null,"Floors:",null,"{HE_Floors(2)}",null,null,null,"Cluttered?",null,null,"{HE_adj_Cluttered(2)}"]
["Climb Ups Installed:",null,null,null,null,"Number & Location",null,null,null,null,"{HE_Number_Location_of_Climb_Up(2)}"]
["Are beds away from all walls and other furniture?",null,null,null,null,null,null,null,null,null,null,"{HE_beds_away_from_all_walls_a(2)}",null,null,null,"Are blankets/sheets touching the floor?",null,null,null,null,null,null,null,null,"{HE_blankets_or_sheets_touchin(2)}"]
["Notes:",null,null,null,null,null,null,null,null,null,null,null,null,null,null,null,null,null,null,null,null,null,"Access?",null,null,"{HE_Access(2)}"]
["{HE_Notes(2)}"]
[]
[]
["Adjacent Unit",null,null,null,"{adj_Unit(3)}",null,null,null,null,null,null,null,"Walls:",null,"{HE_Walls(3)}",null,null,null,"Floors:",null,"{HE_Floors(3)}",null,null,null,"Cluttered?",null,null,"{HE_adj_Cluttered(3)}"]
["Climb Ups Installed:",null,null,null,null,"Number & Location",null,null,null,null,"{HE_Number_Location_of_Climb_Up(3)}"]
["Are beds away from all walls and other furniture?",null,null,null,null,null,null,null,null,null,null,"{HE_beds_away_from_all_walls_a(3)}",null,null,null,null,"Are blankets/sheets touching the floor?",null,null,null,null,null,null,null,null,"{HE_blankets_or_sheets_touchin(3)}"]
["Notes:",null,null,null,null,null,null,null,null,null,null,null,null,null,null,null,null,null,null,null,null,null,"Access?",null,null,"{HE_Access(3)}"]
["{HE_Notes(3)}"]
[]
[]
["Adjacent Unit",null,null,null,"{adj_Unit(4)}",null,null,null,null,null,null,null,"Walls:",null,"{HE_Walls(4)}",null,null,null,"Floors:",null,"{HE_Floors(4)}",null,null,null,"Cluttered?",null,null,"{HE_adj_Cluttered(4)}"]
["Climb Ups Installed:",null,null,null,null,"Number & Location",null,null,null,null,"{HE_Number_Location_of_Climb_Up(4)}"]
["Are beds away from all walls and other furniture?",null,null,null,null,null,null,null,null,null,null,"{HE_beds_away_from_all_walls_a(4)}",null,null,null,null,"Are blankets/sheets touching the floor?",null,null,null,null,null,null,null,null,"{HE_blankets_or_sheets_touchin(4)}"]
["Notes:",null,null,null,null,null,null,null,null,null,null,null,null,null,null,null,null,null,null,null,null,null,"Access?",null,null,"{HE_Access(4)}"]
["{HE_Notes(4)}"]
[]
[]
["Additional Material/Supplies Needed:",null,null,null,null,null,null,null,null,"{Additional_Material_Supplies_N}"]
[]
[null,"{PCO_Signature}",null,null,null,null,null,null,null,null,null,null,null,null,null,null,null,null,"{Site_Manager(1)}"]
[]
[]
[]
[null,"{Technician1}",null,null,null,null,null,null,null,null,null,null,null,null,null,null,null,null,"{Site_Managers_Name(1)}"]
[null,"PCO Signature",null,null,null,null,null,null,null,null,null,null,null,null,null,null,null,null,"Site Manager"]
["Pictures of Unit"]
[]
["",null,null,null,null,null,null,null,null,null,null,null,null,null,null,""]
[]
[]
[]
[]
[]
[]
[]
[]
[]
[]
[]
[]
[]
[]
[]
[]
["",null,null,null,null,null,null,null,null,null,null,null,null,null,null,""]

{"sheet":"Sheet1","index":4,"n_rows":1,"n_cols":6,"rows_kept":1,"cut":false,"hidden":true,"merged":[]}
[null,null,null,null,{"$f":"IF(OR(E2={\"Yes\",\"Keyed\",\"Refused\",\"No Access\"}),E2,\"\")","v":""},{"$f":"SUBSTITUTE(C1,\",\",CHAR(10))","v":""}]